[Event "2019 National Open"]
[Site "Las Vegas"]
[Date "2019.06.14"]
[Round "5"]
[White "Antal, Gergely"]
[Black "Shetty, Atulya"]
[Result "0-1"]
[ECO "C07"]
[WhiteElo "2559"]
[BlackElo "2431"]
[PlyCount "123"]
[EventDate "2019.??.??"]
[TimeControl "5400+30"]
[WhiteClock "0:03:14"]
[BlackClock "0:01:33"]

1. e4 {[%emt 0:00:00]} e6 {[%emt 0:00:14]} 2. d4 {[%emt 0:00:04]} d5 {[%emt 0:00:05]} 3. Nd2 {[%emt 0:00:04]} c5 {[%emt 0:00:05]} 4. exd5 {[%emt 0:00:42]} Qxd5 {[%emt 0:00:06]} 5. Ngf3 {[%emt 0:00:06]} cxd4 {[%emt 0:00:14]} 6. Bc4 {[%emt 0:00:05]} Qd6 {[%emt 0:00:09]} 7. O-O {[%emt 0:00:05]} Nf6 {[%emt 0:00:12]} 8. Nb3 {[%emt 0:00:29]} Nc6 {[%emt 0:00:08]} 9. Nbxd4 {[%emt 0:03:05]} Nxd4 {[%emt 0:00:07]} 10. Nxd4 {[%emt 0:00:03]} a6 {[%emt 0:00:06]} 11. Re1 {[%emt 0:00:02]} Qc7 {[%emt 0:02:29]} 12. Bf1 {[%emt 0:01:10]} Be7 {[%emt 0:03:56]} 13. Qf3 {[%emt 0:00:43]} O-O {[%emt 0:00:30]} 14. Bf4 {[%emt 0:00:09]} Bd6 {[%emt 0:01:59]} 15. Bxd6 {[%emt 0:00:04]} Qxd6 {[%emt 0:00:05]} 16. Rad1 {[%emt 0:00:21]} Qc7 {[%emt 0:02:18]} 17. c4 {[%emt 0:00:20]} Bd7 {[%emt 0:01:34]} 18. b3 {[%emt 0:00:54]} Rfe8 {[%emt 0:10:16]} 19. Qg3 {[%emt 0:05:22]} Qxg3 {[%emt 0:03:52]} 20. hxg3 {[%emt 0:00:01]} e5 {[%emt 0:02:45]} 21. Nc2 {[%emt 0:01:12]} Rad8 {[%emt 0:08:39]} 22. f3 {[%emt 0:31:06]} e4 {[%emt 0:12:41]} 23. Kf2 {[%emt 0:02:23]} exf3 {[%emt 0:02:46]} 24. Rxe8+ {[%emt 0:00:37]} Rxe8 {[%emt 0:00:16]} 25. gxf3 {[%emt 0:00:01]} h5 {[%emt 0:01:49]} 26. Ne3 {[%emt 0:03:33]} g6 {[%emt 0:11:06]} 27. b4 {[%emt 0:05:50]} Kf8 {[%emt 0:03:28]} 28. c5 {[%emt 0:07:26]} Bc6 {[%emt 0:08:57]} 29. Nc4 {[%emt 0:12:11]} g5 {[%emt 0:03:26]} 30. Na5 {[%emt 0:05:09]} Bd5 {[%emt 0:00:28]} 31. Bc4 {[%emt 0:00:23]} Bxc4 {[%emt 0:00:07]} 32. Nxc4 {[%emt 0:00:00]} g4 {[%emt 0:01:06]} 33. Na5 {[%emt 0:06:01]} gxf3 {[%emt 0:09:41]} 34. Nxb7 {[%emt 0:01:36]} Rb8 {[%emt 0:01:33]} 35. Rd8+ {[%emt 0:03:14]} Rxd8 {[%emt 0:00:05]} 36. Nxd8 {[%emt 0:00:02]} a5 {[%emt 0:06:09]} 37. bxa5 {[%emt 0:02:30]} Ne4+ {[%emt 0:00:04]} 38. Kxf3 {[%emt 0:00:02]} Nxc5 {[%emt 0:00:04]} 39. Nb7 {[%emt 0:04:56]} Na6 {[%emt 0:00:00]} 40. Ke4 {[%emt 0:00:04]} Ke7 {[%emt 0:02:38]} 41. Kd5 {[%emt 0:00:07]} f5 {[%emt 0:00:00]} 42. Nc5 {[%emt 0:01:16]} f4 {[%emt 0:00:00]} 43. gxf4 {[%emt 0:00:02]} h4 {[%emt 0:00:00]} 44. Ne4 {[%emt 0:02:52]} Kd7 {[%emt 0:01:18]} 45. Nf2 {[%emt 0:02:43]} Nc7+ {[%emt 0:00:00]} 46. Ke5 {[%emt 0:00:28]} Ne6 {[%emt 0:02:56]} 47. f5 {[%emt 0:02:23]} Nd8 {[%emt 0:00:50]} 48. Kf6 {[%emt 0:00:03]} Nc6 {[%emt 0:01:42]} 49. a6 {[%emt 0:01:40]} Kc7 {[%emt 0:00:24]} 50. Kg5 {[%emt 0:00:02]} Kb6 {[%emt 0:00:23]} 51. Kxh4 {[%emt 0:00:09]} Kxa6 {[%emt 0:00:10]} 52. f6 {[%emt 0:00:00]} Kb5 {[%emt 0:00:14]} 53. Kg5 {[%emt 0:01:29]} Nd8 {[%emt 0:00:49]} 54. Kg6 {[%emt 0:00:37]} Kb4 {[%emt 0:00:30]} 55. Nd3+ {[%emt 0:00:06]} Kc4 {[%emt 0:00:32]} 56. a4 {[%emt 0:00:46]} Kd5 {[%emt 0:00:35]} 57. f7 {[%emt 0:00:21]} Ne6 {[%emt 0:00:04]} 58. Kf6 {[%emt 0:00:14]} Kd6 {[%emt 0:00:10]} 59. Nf4 {[%emt 0:01:19]} Nf8 {[%emt 0:00:04]} 60. Kg7 {[%emt 0:00:15]} Nd7 {[%emt 0:00:16]} 61. f8=Q+ {[%emt 0:00:29]} Nxf8 {[%emt 0:00:06]} 62. Kxf8 {[%emt 0:00:01]} 0-1

[Event "2019 National Open"]
[Site "Las Vegas"]
[Date "2019.06.14"]
[Round "5"]
[White "Shabalov, Alexander"]
[Black "Kung, Thomas"]
[Result "1/2-1/2"]
[ECO "C48"]
[WhiteElo "2528"]
[BlackElo "2136"]
[PlyCount "43"]
[EventDate "2019.??.??"]
[TimeControl "5400+30"]
[WhiteClock "0:42:10"]
[BlackClock "1:16:20"]

1. e4 {[%emt 0:00:00]} e5 {[%emt 0:00:01]} 2. Nf3 {[%emt 0:00:02]} Nc6 {[%emt 0:00:01]} 3. Bb5 {[%emt 0:00:03]} Nf6 {[%emt 0:00:01]} 4. Nc3 {[%emt 0:00:00]} Nd4 {[%emt 0:00:02]} 5. Ba4 {[%emt 0:00:00]} c6 {[%emt 0:00:00]} 6. Nxe5 {[%emt 0:00:00]} d5 {[%emt 0:05:41]} 7. exd5 {[%emt 0:00:00]} Bd6 {[%emt 0:06:50]} 8. Nc4 {[%emt 0:07:15]} b5 {[%emt 0:19:08]} 9. Nxd6+ {[%emt 0:00:12]} Qxd6 {[%emt 0:00:01]} 10. Bb3 {[%emt 0:00:07]} a5 {[%emt 0:01:16]} 11. a3 {[%emt 0:02:11]} Nxb3 {[%emt 0:05:47]} 12. cxb3 {[%emt 0:00:14]} O-O {[%emt 0:02:18]} 13. O-O {[%emt 0:00:49]} Nxd5 {[%emt 0:04:09]} 14. d4 {[%emt 0:04:23]} Nxc3 {[%emt 0:03:43]} 15. bxc3 {[%emt 0:00:09]} a4 {[%emt 0:01:06]} 16. b4 {[%emt 0:03:24]} Be6 {[%emt 0:01:19]} 17. Be3 {[%emt 0:00:58]} Rfe8 {[%emt 0:01:42]} 18. Qd2 {[%emt 0:00:01]} Bc4 {[%emt 0:01:24]} 19. Rfe1 {[%emt 0:00:05]} f6 {[%emt 0:00:40]} 20. f3 {[%emt 0:03:57]} Qd7 {[%emt 0:01:44]} 21. Bf4 {[%emt 0:00:39]} Rxe1+ {[%emt 0:01:27]} 22. Rxe1 {[%emt 0:00:11]} 1/2-1/2

[Event "2019 National Open"]
[Site "Las Vegas"]
[Date "2019.06.14"]
[Round "5"]
[White "Tang, Andrew"]
[Black "Ippolito, Dean"]
[Result "1/2-1/2"]
[ECO "A45"]
[WhiteElo "2496"]
[BlackElo "2331"]
[PlyCount "52"]
[EventDate "2019.??.??"]
[TimeControl "5400+30"]
[WhiteClock "0:20:33"]
[BlackClock "0:07:29"]

1. d4 {[%emt 0:00:00]} Nf6 {[%emt 0:00:01]} 2. Bf4 {[%emt 0:00:01]} g6 {[%emt 0:00:01]} 3. Nc3 {[%emt 0:00:01]} d5 {[%emt 0:00:02]} 4. e3 {[%emt 0:00:01]} Bg7 {[%emt 0:00:01]} 5. h4 {[%emt 0:00:01]} c5 {[%emt 0:01:50]} 6. Nb5 {[%emt 0:01:17]} Na6 {[%emt 0:00:33]} 7. c3 {[%emt 0:01:21]} h5 {[%emt 0:16:33]} 8. Nf3 {[%emt 0:08:16]} O-O {[%emt 0:01:52]} 9. Be2 {[%emt 0:02:50]} Bg4 {[%emt 0:08:49]} 10. Ne5 {[%emt 0:05:26]} Bxe2 {[%emt 0:00:18]} 11. Qxe2 {[%emt 0:00:00]} Qb6 {[%emt 0:07:35]} 12. a4 {[%emt 0:07:47]} Rfc8 {[%emt 0:13:52]} 13. O-O {[%emt 0:11:07]} cxd4 {[%emt 0:01:40]} 14. exd4 {[%emt 0:07:52]} Nb8 {[%emt 0:00:27]} 15. Rfe1 {[%emt 0:04:46]} a6 {[%emt 0:00:44]} 16. Na3 {[%emt 0:03:47]} Nc6 {[%emt 0:03:18]} 17. Nd3 {[%emt 0:03:00]} Qd8 {[%emt 0:06:59]} 18. Nc2 {[%emt 0:05:21]} b6 {[%emt 0:04:09]} 19. Ndb4 {[%emt 0:19:03]} Nxb4 {[%emt 0:02:02]} 20. Nxb4 {[%emt 0:00:00]} a5 {[%emt 0:00:00]} 21. Nc2 {[%emt 0:07:15]} e6 {[%emt 0:01:03]} 22. Bg5 {[%emt 0:01:28]} Qd7 {[%emt 0:01:19]} 23. Bxf6 {[%emt 0:03:08]} Bxf6 {[%emt 0:00:00]} 24. g3 {[%emt 0:00:07]} Be7 {[%emt 0:04:40]} 25. Ne3 {[%emt 0:00:51]} Bd6 {[%emt 0:01:39]} 26. Qd3 {[%emt 0:00:45]} Rab8 {[%emt 0:03:00]} 1/2-1/2

[Event "2019 National Open"]
[Site "Las Vegas"]
[Date "2019.06.14"]
[Round "5"]
[White "Prasanna Raghuram Rao"]
[Black "Gurevich, Dmitry"]
[Result "1/2-1/2"]
[ECO "D59"]
[WhiteElo "2448"]
[BlackElo "2399"]
[PlyCount "40"]
[EventDate "2019.??.??"]
[TimeControl "5400+30"]
[WhiteClock "0:51:38"]
[BlackClock "0:59:03"]

1. d4 {[%emt 0:00:00]} d5 {[%emt 0:00:38]} 2. c4 {[%emt 0:00:22]} e6 {[%emt 0:00:27]} 3. Nf3 {[%emt 0:00:01]} Nf6 {[%emt 0:00:10]} 4. Nc3 {[%emt 0:00:01]} Be7 {[%emt 0:00:07]} 5. Bg5 {[%emt 0:00:01]} h6 {[%emt 0:00:21]} 6. Bh4 {[%emt 0:00:00]} O-O {[%emt 0:00:17]} 7. e3 {[%emt 0:00:07]} b6 {[%emt 0:00:12]} 8. cxd5 {[%emt 0:00:26]} Nxd5 {[%emt 0:00:11]} 9. Bxe7 {[%emt 0:02:13]} Qxe7 {[%emt 0:00:33]} 10. Nxd5 {[%emt 0:02:58]} exd5 {[%emt 0:00:01]} 11. Rc1 {[%emt 0:01:25]} Be6 {[%emt 0:01:40]} 12. Bd3 {[%emt 0:00:15]} c5 {[%emt 0:00:59]} 13. O-O {[%emt 0:01:25]} Nd7 {[%emt 0:05:58]} 14. dxc5 {[%emt 0:00:00]} bxc5 {[%emt 0:00:55]} 15. Bb1 {[%emt 0:00:58]} Rfc8 {[%emt 0:01:30]} 16. b3 {[%emt 0:15:56]} a5 {[%emt 0:02:18]} 17. Ne1 {[%emt 0:02:28]} c4 {[%emt 0:10:30]} 18. Nf3 {[%emt 0:02:09]} cxb3 {[%emt 0:09:12]} 19. Rxc8+ {[%emt 0:10:07]} Rxc8 {[%emt 0:00:34]} 20. axb3 {[%emt 0:00:05]} Qb4 {[%emt 0:11:49]} 1/2-1/2

[Event "2019 National Open"]
[Site "Las Vegas"]
[Date "2019.06.14"]
[Round "5"]
[White "Kavutskiy, Konstantin"]
[Black "Baryshpolets, Andrey"]
[Result "1/2-1/2"]
[ECO "A06"]
[WhiteElo "2417"]
[BlackElo "2574"]
[PlyCount "90"]
[EventDate "2019.??.??"]
[TimeControl "5400+30"]
[WhiteClock "0:02:48"]
[BlackClock "1:00:32"]

1. Nf3 {[%emt 0:00:00]} d5 {[%emt 0:00:01]} 2. e3 {[%emt 0:00:01]} Nf6 {[%emt 0:02:58]} 3. c4 {[%emt 0:00:19]} e6 {[%emt 0:00:21]} 4. Nc3 {[%emt 0:02:15]} c5 {[%emt 0:01:31]} 5. cxd5 {[%emt 0:00:24]} Nxd5 {[%emt 0:00:30]} 6. b3 {[%emt 0:02:42]} Nxc3 {[%emt 0:07:21]} 7. dxc3 {[%emt 0:00:08]} Qxd1+ {[%emt 0:00:02]} 8. Kxd1 {[%emt 0:00:06]} Bd6 {[%emt 0:01:06]} 9. e4 {[%emt 0:03:03]} Nc6 {[%emt 0:02:40]} 10. Kc2 {[%emt 0:01:18]} Ke7 {[%emt 0:01:57]} 11. Be3 {[%emt 0:00:45]} f6 {[%emt 0:02:13]} 12. Nd2 {[%emt 0:00:53]} Ne5 {[%emt 0:02:04]} 13. h3 {[%emt 0:02:49]} g5 {[%emt 0:01:46]} 14. Nc4 {[%emt 0:01:12]} Nxc4 {[%emt 0:00:18]} 15. Bxc4 {[%emt 0:00:15]} b6 {[%emt 0:01:06]} 16. f3 {[%emt 0:00:54]} Bf4 {[%emt 0:02:44]} 17. Bf2 {[%emt 0:01:05]} Bb7 {[%emt 0:01:03]} 18. a4 {[%emt 0:00:25]} a5 {[%emt 0:06:38]} 19. Bb5 {[%emt 0:00:59]} Rad8 {[%emt 0:06:06]} 20. Rad1 {[%emt 0:00:19]} Be5 {[%emt 0:04:14]} 21. Be3 {[%emt 0:01:30]} h5 {[%emt 0:02:30]} 22. Bf2 {[%emt 0:03:19]} Bc8 {[%emt 0:07:42]} 23. b4 {[%emt 0:02:48]} axb4 {[%emt 0:01:28]} 24. cxb4 {[%emt 0:00:13]} Bd4 {[%emt 0:00:47]} 25. Bxd4 {[%emt 0:01:36]} cxd4 {[%emt 0:00:17]} 26. Kd3 {[%emt 0:00:31]} Bd7 {[%emt 0:02:33]} 27. Bxd7 {[%emt 0:00:59]} Rxd7 {[%emt 0:00:03]} 28. Ra1 {[%emt 0:01:02]} e5 {[%emt 0:04:28]} 29. Rhc1 {[%emt 0:01:31]} Ra8 {[%emt 0:10:59]} 30. b5 {[%emt 0:07:42]} Rda7 {[%emt 0:02:25]} 31. Rc4 {[%emt 0:00:07]} Kd7 {[%emt 0:03:28]} 32. g3 {[%emt 0:04:40]} Rc8 {[%emt 0:14:34]} 33. Rxc8 {[%emt 0:02:45]} Kxc8 {[%emt 0:00:01]} 34. Rc1+ {[%emt 0:00:11]} Rc7 {[%emt 0:00:07]} 35. Rxc7+ {[%emt 0:00:41]} Kxc7 {[%emt 0:00:03]} 36. Kc4 {[%emt 0:00:10]} h4 {[%emt 0:03:50]} 37. gxh4 {[%emt 0:00:17]} gxh4 {[%emt 0:00:01]} 38. Kb4 {[%emt 0:00:18]} Kd7 {[%emt 0:00:21]} 39. Kb3 {[%emt 0:00:15]} Ke7 {[%emt 0:00:48]} 40. Kb4 {[%emt 0:00:14]} Kd6 {[%emt 0:00:14]} 41. Kc4 {[%emt 0:00:05]} Ke6 {[%emt 0:01:01]} 42. Kb4 {[%emt 0:00:40]} Ke7 {[%emt 0:05:16]} 43. Kb3 {[%emt 0:00:08]} Kd7 {[%emt 0:00:04]} 44. Kb4 {[%emt 0:00:07]} Kd6 {[%emt 0:00:02]} 45. Kc4 {[%emt 0:00:17]} Kd7 {[%emt 0:00:01]} 1/2-1/2

[Event "2019 National Open"]
[Site "Las Vegas"]
[Date "2019.06.14"]
[Round "5"]
[White "Yanayt, Eugene"]
[Black "Bryant, John Daniel"]
[Result "1-0"]
[ECO "E98"]
[WhiteElo "2241"]
[BlackElo "2434"]
[PlyCount "85"]
[EventDate "2019.??.??"]
[TimeControl "5400+30"]
[WhiteClock "0:01:48"]
[BlackClock "0:14:13"]

1. d4 {[%emt 0:00:00]} g6 {[%emt 0:00:02]} 2. Nf3 {[%emt 0:00:01]} Bg7 {[%emt 0:00:01]} 3. c4 {[%emt 0:00:00]} Nf6 {[%emt 0:00:00]} 4. Nc3 {[%emt 0:00:00]} O-O {[%emt 0:00:00]} 5. e4 {[%emt 0:00:00]} d6 {[%emt 0:00:00]} 6. Be2 {[%emt 0:00:00]} e5 {[%emt 0:00:00]} 7. O-O {[%emt 0:00:00]} Nc6 {[%emt 0:00:01]} 8. d5 {[%emt 0:00:01]} Ne7 {[%emt 0:00:00]} 9. Ne1 {[%emt 0:00:00]} Nd7 {[%emt 0:00:01]} 10. Be3 {[%emt 0:00:00]} f5 {[%emt 0:00:00]} 11. f3 {[%emt 0:00:00]} f4 {[%emt 0:00:00]} 12. Bf2 {[%emt 0:00:00]} g5 {[%emt 0:00:00]} 13. Rc1 {[%emt 0:00:00]} Ng6 {[%emt 0:00:00]} 14. c5 {[%emt 0:00:00]} Nxc5 {[%emt 0:00:00]} 15. b4 {[%emt 0:00:00]} Na6 {[%emt 0:00:00]} 16. Nb5 {[%emt 0:00:00]} Rf7 {[%emt 0:06:08]} 17. Nd3 {[%emt 0:01:31]} Bd7 {[%emt 0:00:33]} 18. a4 {[%emt 0:08:15]} h5 {[%emt 0:10:47]} 19. Nxa7 {[%emt 0:02:40]} Bf8 {[%emt 0:00:34]} 20. Re1 {[%emt 0:13:59]} Kh7 {[%emt 0:14:01]} 21. Kh1 {[%emt 0:03:25]} Rg7 {[%emt 0:00:21]} 22. Nb5 {[%emt 0:12:01]} Nh8 {[%emt 0:06:21]} 23. Qc2 {[%emt 0:02:54]} Nf7 {[%emt 0:02:51]} 24. Bf1 {[%emt 0:04:52]} Kh8 {[%emt 0:01:32]} 25. Nxc7 {[%emt 0:04:19]} Rc8 {[%emt 0:02:09]} 26. Bb6 {[%emt 0:00:01]} g4 {[%emt 0:01:22]} 27. b5 {[%emt 0:04:41]} Nxc7 {[%emt 0:00:01]} 28. Bxc7 {[%emt 0:00:47]} Qh4 {[%emt 0:00:56]} 29. Qf2 {[%emt 0:03:45]} g3 {[%emt 0:05:15]} 30. Qg1 {[%emt 0:00:00]} Be7 {[%emt 0:00:28]} 31. Bb6 {[%emt 0:05:31]} Rcg8 {[%emt 0:15:02]} 32. Re2 {[%emt 0:00:01]} Bd8 {[%emt 0:04:45]} 33. Bc7 {[%emt 0:04:57]} Qf6 {[%emt 0:04:20]} 34. Ne1 {[%emt 0:01:00]} gxh2 {[%emt 0:03:07]} 35. Qb6 {[%emt 0:02:34]} Be7 {[%emt 0:13:20]} 36. a5 {[%emt 0:00:46]} h4 {[%emt 0:01:30]} 37. a6 {[%emt 0:01:18]} bxa6 {[%emt 0:00:01]} 38. bxa6 {[%emt 0:00:16]} h3 {[%emt 0:00:48]} 39. a7 {[%emt 0:01:30]} Ng5 {[%emt 0:00:11]} 40. Qb8 {[%emt 0:03:54]} Nh7 {[%emt 0:09:18]} 41. a8=Q {[%emt 0:03:14]} Qh6 {[%emt 0:00:29]} 42. Bb6 {[%emt 0:07:46]} Nf6 {[%emt 0:02:57]} 43. Bf2 {[%emt 0:01:18]} 1-0

[Event "2019 National Open"]
[Site "Las Vegas"]
[Date "2019.06.14"]
[Round "5"]
[White "Baradaran, Arman"]
[Black "Kondakov, Adrian"]
[Result "1-0"]
[ECO "D30"]
[WhiteElo "2049"]
[BlackElo "2009"]
[PlyCount "211"]
[EventDate "2019.??.??"]
[TimeControl "5400+30"]
[WhiteClock "0:12:54"]
[BlackClock "0:14:23"]

1. d4 {[%emt 0:00:00]} d5 {[%emt 0:00:08]} 2. c4 {[%emt 0:00:06]} e6 {[%emt 0:00:01]} 3. Nf3 {[%emt 0:00:02]} Nf6 {[%emt 0:00:01]} 4. g3 {[%emt 0:00:01]} Be7 {[%emt 0:00:00]} 5. Bg2 {[%emt 0:00:00]} O-O {[%emt 0:00:01]} 6. O-O {[%emt 0:00:04]} c6 {[%emt 0:00:01]} 7. Qc2 {[%emt 0:00:04]} b6 {[%emt 0:00:01]} 8. Nbd2 {[%emt 0:00:01]} Ba6 {[%emt 0:00:02]} 9. b3 {[%emt 0:00:04]} b5 {[%emt 0:04:43]} 10. c5 {[%emt 0:01:51]} b4 {[%emt 0:00:12]} 11. Re1 {[%emt 0:00:26]} Nbd7 {[%emt 0:01:21]} 12. a3 {[%emt 0:02:53]} bxa3 {[%emt 0:01:21]} 13. Rxa3 {[%emt 0:01:21]} Bb5 {[%emt 0:00:23]} 14. Bb2 {[%emt 0:01:27]} Qc7 {[%emt 0:09:22]} 15. b4 {[%emt 0:12:51]} Rfb8 {[%emt 0:11:48]} 16. Bc3 {[%emt 0:01:49]} Ne8 {[%emt 0:10:03]} 17. Ne5 {[%emt 0:06:06]} Nxe5 {[%emt 0:03:18]} 18. dxe5 {[%emt 0:03:49]} a5 {[%emt 0:02:17]} 19. Rea1 {[%emt 0:03:27]} Bxe2 {[%emt 0:03:30]} 20. Nb3 {[%emt 0:07:54]} Bb5 {[%emt 0:02:22]} 21. Rxa5 {[%emt 0:00:58]} Rxa5 {[%emt 0:00:09]} 22. Rxa5 {[%emt 0:00:06]} Qd8 {[%emt 0:03:21]} 23. Bf1 {[%emt 0:07:02]} Bxf1 {[%emt 0:08:42]} 24. Kxf1 {[%emt 0:00:00]} Qc8 {[%emt 0:05:14]} 25. Qe2 {[%emt 0:09:40]} Bd8 {[%emt 0:01:26]} 26. Ra6 {[%emt 0:03:51]} Ra8 {[%emt 0:00:03]} 27. b5 {[%emt 0:01:57]} Rxa6 {[%emt 0:00:24]} 28. bxa6 {[%emt 0:00:00]} Nc7 {[%emt 0:12:34]} 29. Ba5 {[%emt 0:00:28]} Nb5 {[%emt 0:00:13]} 30. Bxd8 {[%emt 0:04:05]} Qxd8 {[%emt 0:00:08]} 31. Qd2 {[%emt 0:01:54]} Qc7 {[%emt 0:06:54]} 32. Na5 {[%emt 0:00:57]} Qxe5 {[%emt 0:01:27]} 33. Nxc6 {[%emt 0:03:08]} Qa1+ {[%emt 0:00:12]} 34. Kg2 {[%emt 0:00:20]} Qxa6 {[%emt 0:00:15]} 35. Qf4 {[%emt 0:00:39]} Qb7 {[%emt 0:03:40]} 36. Na5 {[%emt 0:00:48]} Qc7 {[%emt 0:01:06]} 37. Qb4 {[%emt 0:00:27]} Qb8 {[%emt 0:00:00]} 38. c6 {[%emt 0:02:11]} d4 {[%emt 0:03:07]} 39. Nc4 {[%emt 0:05:34]} d3 {[%emt 0:03:00]} 40. Kf1 {[%emt 0:00:53]} h6 {[%emt 0:01:03]} 41. c7 {[%emt 0:07:31]} Qb7 {[%emt 0:03:04]} 42. c8=Q+ {[%emt 0:00:01]} Qxc8 {[%emt 0:00:00]} 43. Qxb5 {[%emt 0:00:14]} Qa8 {[%emt 0:00:00]} 44. Ke1 {[%emt 0:04:38]} Qh1+ {[%emt 0:02:11]} 45. Kd2 {[%emt 0:00:04]} Qf3 {[%emt 0:00:20]} 46. Qb8+ {[%emt 0:05:06]} Kh7 {[%emt 0:00:01]} 47. Qf4 {[%emt 0:00:06]} Qe2+ {[%emt 0:01:09]} 48. Kc3 {[%emt 0:00:11]} Qc2+ {[%emt 0:01:19]} 49. Kb4 {[%emt 0:00:52]} Qb1+ {[%emt 0:01:39]} 50. Kc5 {[%emt 0:00:13]} Qb7 {[%emt 0:00:39]} 51. Kd4 {[%emt 0:03:33]} Qd5+ {[%emt 0:00:00]} 52. Ke3 {[%emt 0:01:04]} Kg8 {[%emt 0:00:45]} 53. Qd4 {[%emt 0:00:49]} Qh5 {[%emt 0:00:22]} 54. Qd8+ {[%emt 0:00:08]} Kh7 {[%emt 0:00:09]} 55. Qxd3+ {[%emt 0:00:04]} g6 {[%emt 0:00:44]} 56. h4 {[%emt 0:01:06]} Qc5+ {[%emt 0:00:23]} 57. Qd4 {[%emt 0:00:14]} Qb4 {[%emt 0:00:06]} 58. Nd6 {[%emt 0:00:58]} Qe1+ {[%emt 0:00:04]} 59. Kf3 {[%emt 0:00:24]} Kg8 {[%emt 0:01:51]} 60. Kg2 {[%emt 0:00:14]} Qa5 {[%emt 0:00:39]} 61. Kh2 {[%emt 0:00:56]} Qd8 {[%emt 0:00:00]} 62. Qf4 {[%emt 0:01:07]} Qe7 {[%emt 0:00:58]} 63. Qe5 {[%emt 0:00:57]} f6 {[%emt 0:00:00]} 64. Qc5 {[%emt 0:00:07]} Kh7 {[%emt 0:00:27]} 65. Ne4 {[%emt 0:00:30]} Qf7 {[%emt 0:01:05]} 66. Qd6 {[%emt 0:00:24]} Kg7 {[%emt 0:00:31]} 67. Nc5 {[%emt 0:00:33]} e5 {[%emt 0:00:12]} 68. Nd7 {[%emt 0:01:41]} h5 {[%emt 0:00:53]} 69. Kg1 {[%emt 0:00:09]} e4 {[%emt 0:00:35]} 70. Kh1 {[%emt 0:01:01]} f5 {[%emt 0:00:00]} 71. Ne5 {[%emt 0:00:18]} Qe8 {[%emt 0:00:14]} 72. Kh2 {[%emt 0:00:36]} Kh7 {[%emt 0:00:44]} 73. Qf6 {[%emt 0:00:08]} Qg8 {[%emt 0:00:33]} 74. Qf7+ {[%emt 0:00:22]} Qxf7 {[%emt 0:00:19]} 75. Nxf7 {[%emt 0:00:00]} Kg7 {[%emt 0:00:06]} 76. Ng5 {[%emt 0:00:04]} Kf6 {[%emt 0:00:03]} 77. Kg2 {[%emt 0:00:13]} Ke5 {[%emt 0:00:10]} 78. Nh3 {[%emt 0:00:02]} Kf6 {[%emt 0:00:28]} 79. Kf1 {[%emt 0:00:03]} Ke5 {[%emt 0:00:24]} 80. Ke2 {[%emt 0:00:01]} Kf6 {[%emt 0:00:11]} 81. Ke3 {[%emt 0:00:11]} Ke5 {[%emt 0:00:04]} 82. Ng5 {[%emt 0:00:00]} Kd5 {[%emt 0:00:07]} 83. Nh3 {[%emt 0:00:32]} Ke5 {[%emt 0:00:04]} 84. Ng1 {[%emt 0:00:03]} Kd5 {[%emt 0:00:13]} 85. Ne2 {[%emt 0:00:10]} Ke5 {[%emt 0:00:02]} 86. Nc3 {[%emt 0:00:07]} f4+ {[%emt 0:00:20]} 87. gxf4+ {[%emt 0:00:04]} Kf5 {[%emt 0:00:02]} 88. f3 {[%emt 0:00:19]} exf3 {[%emt 0:00:11]} 89. Kxf3 {[%emt 0:00:00]} Kf6 {[%emt 0:00:07]} 90. Ke4 {[%emt 0:00:01]} Kg7 {[%emt 0:00:05]} 91. Ke5 {[%emt 0:00:03]} Kf7 {[%emt 0:00:05]} 92. Nd5 {[%emt 0:00:03]} Kg7 {[%emt 0:00:04]} 93. Ke6 {[%emt 0:00:03]} Kh6 {[%emt 0:00:11]} 94. Kf6 {[%emt 0:00:03]} Kh7 {[%emt 0:00:04]} 95. Ne7 {[%emt 0:00:02]} Kh6 {[%emt 0:00:03]} 96. Nxg6 {[%emt 0:00:04]} Kh7 {[%emt 0:00:02]} 97. Ne7 {[%emt 0:00:18]} Kh6 {[%emt 0:00:08]} 98. f5 {[%emt 0:00:01]} Kh7 {[%emt 0:00:02]} 99. Nc6 {[%emt 0:00:07]} Kh6 {[%emt 0:00:03]} 100. Ke7 {[%emt 0:00:04]} Kh7 {[%emt 0:00:04]} 101. f6 {[%emt 0:00:10]} Kh6 {[%emt 0:00:05]} 102. f7 {[%emt 0:00:01]} Kg6 {[%emt 0:00:05]} 103. f8=Q {[%emt 0:00:04]} Kh7 {[%emt 0:00:03]} 104. Qf5+ {[%emt 0:00:05]} Kh6 {[%emt 0:00:08]} 105. Qg5+ {[%emt 0:00:02]} Kh7 {[%emt 0:00:03]} 106. Kf7 {[%emt 0:00:04]} 1-0

[Event "2019 National Open"]
[Site "Las Vegas"]
[Date "2019.06.15"]
[Round "7"]
[White "Shabalov, Alexander"]
[Black "Asaria, Danial"]
[Result "1-0"]
[ECO "B90"]
[WhiteElo "2528"]
[BlackElo "2304"]
[PlyCount "45"]
[EventDate "2019.??.??"]
[TimeControl "5400+30"]
[WhiteClock "0:15:34"]
[BlackClock "0:44:55"]

1. e4 {[%emt 0:00:00]} c5 {[%emt 0:00:07]} 2. Nf3 {[%emt 0:00:05]} d6 {[%emt 0:00:03]} 3. d4 {[%emt 0:00:04]} cxd4 {[%emt 0:00:01]} 4. Nxd4 {[%emt 0:00:05]} Nf6 {[%emt 0:00:01]} 5. Nc3 {[%emt 0:00:01]} a6 {[%emt 0:00:08]} 6. h3 {[%emt 0:00:08]} e5 {[%emt 0:03:20]} 7. Nb3 {[%emt 0:00:05]} h5 {[%emt 0:00:07]} 8. Be2 {[%emt 0:05:00]} Be6 {[%emt 0:02:12]} 9. f4 {[%emt 0:01:17]} exf4 {[%emt 0:12:16]} 10. Bxf4 {[%emt 0:00:11]} Nc6 {[%emt 0:01:01]} 11. Qd2 {[%emt 0:03:06]} Rc8 {[%emt 0:05:57]} 12. O-O-O {[%emt 0:13:37]} Ne5 {[%emt 0:02:04]} 13. Qe3 {[%emt 0:00:22]} Qc7 {[%emt 0:02:12]} 14. Kb1 {[%emt 0:00:08]} b5 {[%emt 0:16:25]} 15. Ka1 {[%emt 0:03:39]} Be7 {[%emt 0:04:11]} 16. Nd5 {[%emt 0:05:25]} Bxd5 {[%emt 0:07:56]} 17. exd5 {[%emt 0:00:05]} Nc4 {[%emt 0:04:31]} 18. Qd4 {[%emt 0:14:25]} Nd7 {[%emt 0:06:17]} 19. Bxc4 {[%emt 0:00:52]} Qxc4 {[%emt 0:14:30]} 20. Qxg7 {[%emt 0:01:24]} Rf8 {[%emt 0:01:32]} 21. Qg3 {[%emt 0:05:15]} h4 {[%emt 0:00:27]} 22. Qe3 {[%emt 0:00:52]} Kd8 {[%emt 0:00:08]} 23. Na5 {[%emt 0:00:29]} 1-0